bitfinex/quotes_ETHUSD_20250611
["timestamp","ask_amount","ask_price","bid_price","bid_amount"]
[1749674445455,0.1768,2818.6,2818.1,0.1768]
[1749674447716,0.1768,2818.6,2818.2,0.8243]
[1749674449252,0.1768,2818.9,2818.4,0.1768]
[1749674451561,0.7994,2819.0,2818.2,18.28192899]
[1749674451768,0.7994,2819.0,2818.6,0.1768]
[1749674461371,0.1768,2819.1,2818.6,0.1768]
[1749674461573,0.8115,2819.2,2818.7,9.06700741]
[1749674461735,0.8115,2819.2,2818.8,0.1768]
[1749674463563,0.36127028,2819.9,2818.8,0.1768]
[1749674463564,1.60152052,2820.0,2819.2,0.8229]
[1749674463794,0.753,2820.0,2819.2,0.8229]
[1749674464691,0.753,2820.0,2819.3,8.29820741]
[1749674465243,0.753,2820.0,2819.2,0.8229]
[1749674465478,0.753,2820.0,2819.2,1.39089]
[1749674466087,0.753,2820.0,2819.0,0.8274]
[1749674466376,0.753,2820.0,2818.5,10.0]
[1749674466377,0.7959,2819.6,2818.6,0.982]
[1749674470203,0.7959,2819.6,2818.8,10.0]
[1749674470411,0.7959,2819.6,2819.0,12.66713451]
[1749674471403,0.7959,2819.6,2819.1,10.0]
[1749674472164,0.7703,2820.2,2819.2,0.8085]
[1749674473587,0.1768,2819.9,2819.4,0.1768]
[1749674474102,0.8136,2819.8,2819.4,0.1768]
[1749674477420,0.8136,2819.8,2818.9,10.0]
[1749674477710,0.7544,2819.5,2819.1,0.1768]
[1749674494645,8.29659788,2819.5,2818.6,4.67]
[1749674494849,0.1768,2819.3,2818.8,0.1768]
[1749674502681,0.8272,2819.2,2818.8,0.1768]
[1749674503232,0.8272,2819.2,2818.2,8.29659788]
[1749674503558,8.29659788,2819.3,2818.4,0.1768]
[1749674503559,0.1768,2818.9,2818.4,0.1768]
[1749674508498,0.13317111,2818.9,2818.4,0.1768]
[1749674509278,0.13317111,2818.9,2818.4,1.02413979]
[1749674516516,9.10569788,2818.8,2817.9,0.8111]
[1749674516813,4.72127321,2819.3,2818.5,8.29659788]
[1749674517018,0.9859,2819.0,2818.7,8.29659788]
[1749674517418,0.9859,2819.2,2818.7,0.1768]
[1749674519501,0.9859,2819.2,2818.7,9.32073767]
[1749674519726,0.1768,2819.2,2818.9,8.29659788]
[1749674519928,0.8102,2819.4,2818.9,8.29659788]
[1749674520223,0.8102,2819.4,2819.0,0.1768]
[1749674527246,0.8102,2819.4,2818.2,18.29659788]
[1749674527247,0.7945,2819.1,2817.8,0.85141542]
[1749674527554,0.7945,2818.1,2817.3,4.85918716]
[1749674527839,0.7945,2818.1,2817.4,3.687]
[1749674528739,0.7945,2818.1,2817.5,10.0]
[1749674531060,0.7945,2818.1,2817.3,9.46539198]
[1749674531263,0.7945,2818.1,2817.4,10.0]
[1749674531617,0.7945,2818.1,2817.1,8.29659788]
[1749674531822,0.7945,2818.1,2817.2,13.687]
[1749674532056,0.7945,2818.1,2817.0,1.97145563]
[1749674532257,0.7945,2818.1,2817.2,10.0]
[1749674532668,0.7945,2818.1,2817.0,1.97145563]
[1749674532669,0.8046,2817.9,2817.0,0.979]
[1749674533049,0.8046,2817.9,2817.0,10.979]
[1749674533751,0.8046,2817.9,2817.0,10.0]
[1749674534081,0.7518,2817.7,2816.5,9.30456628]
[1749674534373,0.7518,2817.7,2816.7,3.687]
[1749674534863,0.7518,2817.7,2816.7,11.98359788]
[1749674535658,0.7518,2817.7,2816.7,3.687]
[1749674535867,0.7518,2817.7,2816.7,11.98359788]
[1749674536065,0.8233,2817.6,2816.8,1.30119545]
[1749674537359,0.1768,2817.3,2816.8,1.30119545]
[1749674537667,0.8233,2817.2,2816.8,1.30119545]
[1749674539671,0.8296,2817.5,2817.1,8.29659788]
[1749674539966,1.0064,2817.5,2817.1,8.29659788]
[1749674542032,1.0064,2817.5,2817.1,9.21976767]
[1749674542849,0.8296,2817.5,2817.3,8.29659788]
[1749674543385,0.8296,2817.5,2817.2,0.1768]
[1749674544644,0.1768,2817.4,2817.1,8.29659788]
[1749674546197,0.1768,2817.4,2817.1,9.51263767]
[1749674546501,0.1768,2817.6,2817.1,9.68943767]
[1749674549406,0.1768,2817.6,2817.1,11.39283979]
[1749674549761,0.1768,2817.6,2817.1,0.1768]
[1749674550272,0.1768,2817.5,2817.0,3.8638]
[1749674550468,0.1768,2817.5,2817.0,0.1768]
[1749674550696,0.8089,2817.4,2817.0,3.8638]
[1749674550999,0.8089,2817.4,2817.0,0.1768]
[1749674552358,0.8089,2817.4,2816.8,3.687]
[1749674552557,0.1768,2817.3,2816.8,3.8638]
[1749674552966,0.1768,2817.3,2816.8,0.1768]
[1749674553959,8.48149206,2817.8,2816.7,8.29659788]
[1749674554159,0.8171,2817.0,2816.7,8.29659788]
[1749674554476,0.8171,2817.0,2816.6,3.8638]
[1749674555605,0.8171,2817.0,2816.7,8.29659788]
[1749674555811,0.1768,2817.1,2816.9,8.29659788]
[1749674556106,0.7796,2817.2,2816.9,8.47339788]
[1749674556467,0.18489418,2817.8,2816.7,1.21603979]
[1749674556468,0.7896,2817.6,2817.1,8.29659788]
[1749674556669,0.7896,2817.6,2817.1,8.47339788]
[1749674556869,0.9664,2817.6,2817.1,8.47339788]
[1749674557102,0.9664,2817.6,2817.1,9.71570839]
[1749674557409,0.7896,2817.6,2816.9,11.98259788]
[1749674557607,0.1768,2817.4,2816.9,12.15939788]
[1749674557801,0.1768,2817.4,2816.9,0.1768]
[1749674557802,0.8199,2817.3,2816.9,0.1768]
[1749674558203,0.8199,2817.3,2816.9,8.47339788]
[1749674561618,0.8199,2817.3,2816.9,0.1768]
[1749674561919,0.1768,2817.2,2816.9,8.29659788]
[1749674563929,0.1768,2817.2,2816.8,10.0]
[1749674564209,0.1768,2817.2,2816.8,3.686]
[1749674564511,0.1768,2817.2,2816.9,8.29659788]
[1749674568050,0.1768,2817.2,2816.8,4.90193979]
[1749674568540,0.1768,2817.2,2816.7,8.47339788]
[1749674568541,0.1768,2817.2,2816.7,0.1768]
[1749674568699,0.1768,2817.0,2816.5,0.9566]
[1749674568908,0.1768,2817.0,2816.6,8.29659788]
[1749674570046,0.1768,2817.0,2816.8,8.29659788]
[1749674572304,0.1768,2817.0,2816.6,8.29659788]
[1749674574547,0.1768,2817.0,2816.6,9.60832538]
[1749674574907,0.1768,2817.0,2816.8,8.29659788]
[1749674576264,0.8199,2817.3,2816.8,8.29659788]
[1749674576459,0.1768,2817.2,2816.8,8.29659788]
[1749674579567,0.1768,2817.2,2816.7,0.1768]
[1749674579862,0.7539,2817.6,2817.0,9.12469788]
[1749674580037,0.9307,2817.6,2817.2,8.29659788]
[1749674580238,0.9307,2817.6,2817.1,0.1768]
[1749674580759,0.1768,2817.4,2817.0,8.29659788]
[1749674583351,0.1768,2817.4,2817.2,8.29659788]
[1749674583681,0.1768,2817.4,2817.0,1.29854979]
[1749674583845,0.1768,2817.4,2817.1,8.29659788]
[1749674587970,0.18491393,2817.7,2817.3,8.29659788]
[1749674588173,0.18491393,2817.7,2816.7,10.0]
[1749674588174,0.1768,2817.7,2817.5,8.29659788]
[1749674588384,0.1768,2817.9,2817.5,8.29659788]
[1749674591573,0.1768,2817.9,2817.7,8.29659788]
[1749674594941,0.1768,2817.9,2817.6,0.8307]
[1749674595368,0.1768,2817.9,2817.6,4.5127]
[1749674596518,0.1768,2817.9,2817.6,3.682]
[1749674599197,0.1768,2817.9,2817.5,9.51223767]
[1749674599492,0.1768,2817.9,2817.6,3.682]
[1749674600194,0.1768,2817.9,2817.5,3.681]
[1749674600490,0.1768,2817.9,2817.6,0.7961]
[1749674600677,0.1848546,2818.4,2817.7,11.97759788]
[1749674600863,0.3616546,2818.4,2818.2,8.29659788]
[1749674601193,0.3616546,2818.4,2817.9,0.1768]
[1749674601392,0.3616546,2818.4,2817.5,3.8578]
[1749674601393,0.1768,2818.0,2817.5,3.8578]
[1749674601578,0.7906,2817.9,2817.5,3.8578]
[1749674602292,0.7906,2817.9,2817.5,5.24358]
[1749674603700,0.1768,2818.0,2817.8,8.29659788]
[1749674604098,0.8132,2818.3,2817.8,8.29659788]
[1749674604285,0.99,2818.3,2817.8,8.47339788]
[1749674605388,0.1768,2818.3,2818.0,8.29659788]
[1749674606295,0.1768,2818.3,2817.8,8.47339788]
[1749674606500,0.1768,2818.3,2817.8,9.54596818]
[1749674607385,0.1768,2818.3,2817.8,1.2493703]
[1749674608008,0.1768,2818.3,2817.8,0.1768]
[1749674608213,0.1768,2818.0,2817.5,3.8568]
[1749674608409,0.1768,2818.0,2816.4,3.73086529]
[1749674608410,0.8209,2818.2,2817.0,0.7595]
[1749674608717,0.8102,2817.6,2817.2,0.1768]
[1749674608916,0.8102,2817.6,2817.2,11.39213979]
[1749674609672,0.8102,2817.6,2817.3,8.29659788]
[1749674609873,0.1768,2817.7,2817.3,8.29659788]
[1749674611526,0.7708,2817.8,2817.5,8.29659788]
[1749674614797,0.1768,2817.9,2817.5,8.29659788]
[1749674620019,0.1768,2817.9,2817.5,9.14393767]
[1749674622634,1.60117437,2818.3,2817.7,8.29659788]
[1749674622829,0.1768,2818.0,2817.7,8.29659788]
[1749674625038,0.1768,2818.0,2817.6,0.7549]
[1749674625224,0.7514,2817.9,2817.4,3.678]
[1749674625421,0.9282,2817.9,2817.4,3.8548]
[1749674626560,0.9282,2817.9,2817.5,8.29659788]
[1749674630255,0.1768,2817.9,2817.5,8.29659788]
[1749674631749,0.1768,2817.9,2817.7,8.29659788]
[1749674637812,0.1768,2817.9,2817.7,9.53960839]
[1749674638047,0.1768,2818.3,2817.8,3.8538]
[1749674638228,0.95582587,2818.6,2818.0,8.29659788]
[1749674638529,0.1768,2818.5,2818.0,12.15039788]
[1749674638750,0.1768,2818.5,2818.1,1.21503979]
[1749674639639,0.1768,2818.5,2818.1,2.00023979]
[1749674641944,0.1768,2818.5,2818.3,8.29659788]
[1749674642141,0.18482587,2818.6,2818.3,8.29659788]
[1749674642355,0.18482587,2818.6,2818.3,9.34396165]
[1749674642956,0.18482587,2818.6,2818.5,8.29659788]
[1749674643144,0.8064,2819.8,2818.7,0.808]
[1749674643342,0.8064,2820.4,2819.7,8.29659788]
[1749674643569,0.8064,2820.4,2820.2,8.29659788]
[1749674643895,0.8064,2820.6,2820.2,8.29659788]
[1749674644044,0.8064,2820.6,2820.0,3.676]
[1749674644244,0.8064,2820.6,2820.2,8.29659788]
[1749674647055,0.8064,2820.6,2819.7,3.674]
[1749674649312,0.7714,2820.4,2819.3,19.07399788]
[1749674649604,0.7714,2820.4,2819.4,15.69336377]
[1749674649953,0.7714,2820.4,2819.5,8.29659788]
[1749674650152,0.7714,2820.4,2819.9,8.29659788]
[1749674650352,0.7714,2820.4,2819.7,8.29659788]
[1749674650575,0.7714,2820.4,2819.6,3.674]
[1749674650778,0.7714,2820.4,2819.6,5.08498653]
[1749674653060,0.1768,2820.1,2819.6,5.26178653]
[1749674653797,0.1768,2820.1,2819.6,1.58778653]
[1749674654303,0.1768,2819.7,2819.2,0.1768]
[1749674654473,0.1768,2819.7,2819.3,8.29659788]
[1749674655504,0.1768,2819.7,2819.2,0.1768]
[1749674655683,0.1768,2819.7,2819.2,5.14384979]
[1749674658330,0.1768,2819.7,2819.3,8.29659788]
[1749674660401,0.1768,2819.7,2819.2,1.47084979]
[1749674660588,0.7947,2819.6,2819.0,3.8488]
[1749674660789,0.1768,2819.5,2819.0,5.16043979]
[1749674661003,0.1768,2819.5,2819.1,8.29659788]
[1749674662383,0.1768,2819.5,2819.3,16.59319576]
[1749674662582,0.8135,2820.3,2819.4,3.672]
[1749674662778,0.8135,2820.3,2819.5,8.29659788]
[1749674663103,0.8135,2820.3,2819.5,11.96859788]
[1749674664603,0.8135,2820.3,2819.5,3.672]
[1749674664808,0.8135,2820.3,2819.4,3.672]
[1749674664970,0.8135,2820.3,2819.4,5.04099979]
[1749674665307,0.8135,2820.3,2819.7,8.29659788]
[1749674665529,0.8135,2820.3,2819.7,9.12909788]
[1749674665738,0.8135,2820.3,2819.9,8.29659788]
[1749674665889,1.3029,2820.7,2820.1,8.29659788]
[1749674666200,1.3029,2820.7,2819.9,8.29659788]
[1749674666808,0.7529,2820.4,2819.5,4.5035]
[1749674667129,0.7529,2820.4,2819.5,1.92185051]
[1749674667334,0.7529,2820.4,2819.5,10.21844839]
[1749674667487,0.7529,2820.4,2819.7,8.29659788]
[1749674667825,0.7529,2820.4,2819.7,11.96759788]
[1749674670788,0.7529,2820.4,2819.7,3.671]
[1749674670989,0.7529,2820.4,2819.5,10.21844839]
[1749674671184,0.7529,2820.4,2819.6,3.671]
[1749674671823,0.7529,2820.4,2819.5,10.21844839]
[1749674671995,0.7529,2820.4,2819.6,4.69284484]
[1749674672500,0.1768,2820.1,2819.6,4.86964484]
[1749674673400,0.1768,2820.1,2819.7,8.29659788]
[1749674673730,0.1768,2820.5,2820.0,1.0045]
[1749674673899,0.27743503,2820.8,2820.3,8.29659788]
[1749674673900,1.71706923,2820.8,2820.3,8.29659788]
[1749674674099,1.04949416,2820.8,2820.5,8.29659788]
[1749674674889,1.71706923,2820.8,2820.0,3.67]
[1749674675212,0.1768,2820.7,2820.1,8.47339788]
[1749674675424,1.02117507,2820.7,2820.1,9.68773767]
[1749674675586,0.1768,2820.7,2820.1,10.50503767]
[1749674676120,0.87269416,2820.8,2820.3,8.29659788]
[1749674676326,1.04949416,2820.8,2820.3,0.1768]
[1749674677015,1.04949416,2820.8,2820.3,1.22730377]
[1749674679427,1.04949416,2820.8,2820.3,0.1768]
[1749674679596,0.1768,2820.7,2820.2,0.1768]
[1749674682101,0.1768,2820.7,2820.3,8.29659788]
[1749674682514,0.1768,2820.7,2820.2,0.952]
[1749674683436,0.1768,2820.7,2820.2,0.1768]
[1749674683600,0.1768,2820.7,2820.2,0.639]
[1749674684171,0.87269416,2820.8,2820.3,8.29659788]
[1749674684434,0.09269416,2820.8,2820.4,0.1768]
[1749674687047,0.8316,2820.5,2819.5,1.7828]
[1749674687250,0.1768,2820.3,2819.8,0.1768]
[1749674688065,0.1768,2820.3,2819.9,8.29659788]
[1749674688361,0.8316,2820.5,2820.2,0.1768]
[1749674689348,0.8316,2820.5,2819.9,9.09379788]
[1749674689657,1.0084,2820.5,2820.0,0.1768]
[1749674690314,0.55,2820.4,2819.7,0.64528]
[1749674690532,0.7984,2820.2,2819.8,0.1768]
[1749674691164,0.7984,2820.4,2820.0,0.1768]
[1749674694632,0.1768,2820.5,2820.0,0.1768]
[1749674700564,0.1768,2820.5,2820.1,8.29659788]
[1749674700768,0.7984,2820.6,2820.2,1.02413979]
[1749674701324,0.7984,2820.6,2820.2,0.1768]
[1749674701530,0.977,2820.4,2819.7,3.667]
[1749674701749,0.977,2820.4,2819.9,0.1768]
[1749674702137,0.8002,2820.4,2819.7,3.667]
[1749674702337,0.1768,2820.2,2819.7,5.60405979]
[1749674702966,0.1768,2820.2,2819.7,13.90065767]
[1749674703545,0.8002,2820.4,2819.8,0.7989]
[1749674703763,0.1768,2820.5,2820.2,8.29659788]
[1749674703958,0.8491172,2820.7,2820.4,8.29659788]
[1749674703959,0.1768,2820.7,2820.4,8.29659788]
[1749674704280,0.88169416,2820.8,2820.4,8.47339788]
[1749674705083,0.88169416,2820.8,2820.4,0.1768]
[1749674706773,0.55,2820.7,2820.2,3.667]
[1749674706955,0.1768,2820.5,2820.2,3.667]
[1749674708992,0.1768,2820.5,2820.0,3.8438]
[1749674709196,0.1768,2820.5,2820.0,3.8428]
[1749674709739,0.7795,2820.4,2820.0,0.1768]
[1749674709944,0.55,2820.3,2819.9,4.67]
[1749674710243,0.1768,2820.2,2819.9,4.67]
[1749674710481,0.1768,2820.2,2819.7,3.8428]
[1749674710680,0.7795,2820.1,2819.7,4.39941]
[1749674712750,0.7795,2820.1,2819.7,0.1768]
[1749674712950,0.1768,2820.0,2819.5,0.1768]
[1749674713689,0.55,2819.9,2819.5,0.1768]
[1749674713894,0.7682,2819.8,2819.5,0.1768]
[1749674714194,1.3583,2820.2,2819.6,8.29659788]
[1749674714362,0.1768,2820.1,2819.8,8.29659788]
[1749674715093,0.1768,2820.1,2819.7,0.91077979]
[1749674715280,0.1768,2820.1,2819.6,8.47339788]
[1749674716879,0.1768,2820.1,2819.6,0.1768]
[1749674717521,0.7647,2819.9,2819.3,3.666]
[1749674717698,0.1768,2819.8,2819.3,3.8428]
[1749674718068,0.1768,2819.8,2819.4,8.29659788]
[1749674718295,0.1768,2819.8,2819.5,1.21393979]
[1749674719266,0.7647,2819.9,2819.6,8.29659788]
[1749674719508,0.1768,2820.0,2819.6,8.29659788]
[1749674720381,0.1768,2820.0,2819.5,0.1768]
[1749674720608,0.1768,2820.0,2819.5,1.39073979]
[1749674721894,0.7546,2819.9,2819.5,0.1768]
[1749674722094,0.1768,2819.8,2819.3,3.8418]
[1749674722406,0.55,2819.5,2818.7,0.968]
[1749674722563,0.55,2819.3,2818.9,0.1768]
[1749674722769,0.1768,2819.3,2818.8,8.47339788]
[1749674722969,0.1768,2819.3,2818.9,0.84733979]
[1749674723668,0.7546,2819.4,2819.0,8.29659788]
[1749674723874,0.7546,2819.4,2818.8,8.29659788]
[1749674724073,0.1768,2819.3,2818.8,8.47339788]
[1749674727072,0.55,2819.2,2818.8,0.1768]
[1749674727272,0.8206,2819.1,2818.5,3.665]
[1749674727472,0.9974,2819.1,2818.6,0.1768]
[1749674731588,8.47339788,2818.7,2817.8,0.7521]
[1749674731792,0.55,2818.5,2817.7,3.665]
[1749674732099,0.1768,2818.4,2817.9,8.47339788]
[1749674732277,0.1768,2818.4,2817.9,9.68723767]
[1749674732909,0.1768,2818.4,2818.1,8.29659788]
[1749674733110,0.7726,2818.6,2818.1,8.29659788]
[1749674733314,0.9494,2818.6,2818.1,8.47339788]
[1749674735408,0.9494,2818.6,2818.1,0.1768]
[1749674735723,0.55,2818.5,2818.1,0.1768]
[1749674735880,0.55,2818.3,2817.5,10.1]
[1749674736081,0.55,2818.1,2817.5,11.19277]
[1749674737119,0.966,2819.4,2817.5,10.1]
[1749674737120,0.55,2818.4,2817.5,10.1]
[1749674737304,0.55,2818.0,2817.5,10.1]
[1749674737491,0.55,2817.8,2817.5,10.1]
[1749674738423,0.55,2818.1,2817.5,10.1]
[1749674738586,0.55,2817.9,2817.5,10.1]
[1749674738785,0.55,2817.7,2817.5,10.1]
[1749674739012,1.3574,2817.6,2817.5,10.1]
[1749674739584,2.49314,2817.6,2817.5,10.1]
[1749674742244,0.8074,2817.6,2817.5,10.1]
[1749674742799,0.55,2817.7,2817.5,10.1]
[1749674743093,0.8197,2818.5,2817.6,13.42891783]
[1749674743298,0.8197,2818.5,2817.6,17.09491783]
[1749674743499,0.55,2818.4,2817.6,17.09491783]
[1749674744041,0.8197,2818.5,2817.6,17.09491783]
[1749674744531,0.55,2818.4,2817.6,17.09491783]
[1749674745442,0.8197,2818.5,2817.6,17.09491783]
[1749674745824,0.1768,2818.3,2817.8,0.1768]
[1749674754612,0.1768,2818.3,2817.9,0.7712]
[1749674754811,1.3266,2818.8,2817.9,13.44941783]
[1749674755042,0.1768,2818.6,2818.1,0.1768]
[1749674757062,0.7766,2819.1,2818.2,13.44941783]
[1749674757231,0.1768,2818.9,2818.4,0.1768]
[1749674757627,0.1768,2818.9,2818.4,1.29020852]
[1749674757825,0.7766,2819.1,2818.4,1.11340852]
[1749674758025,0.9534,2819.1,2818.6,0.1768]
[1749674758672,0.1768,2819.1,2818.6,0.1768]
[1749674760551,13.22821783,2818.8,2817.9,0.7766]
[1749674760742,0.8032,2818.5,2817.6,0.7766]
[1749674760943,0.8032,2818.5,2817.6,10.7766]
[1749674761443,0.8032,2818.5,2817.6,23.45481783]
[1749674761756,1.3532,2818.8,2818.0,0.7766]
[1749674761968,1.3532,2818.8,2818.0,2.12208178]
[1749674766380,1.3532,2818.8,2817.8,0.7745]
[1749674770579,0.1768,2818.5,2818.0,0.1768]
[1749674773462,0.798,2818.2,2817.9,8.30220943]
[1749674773787,0.798,2818.2,2817.8,10.1768]
[1749674779597,0.798,2818.2,2817.8,0.1768]
[1749674780198,0.798,2818.2,2817.5,10.0]
[1749674780199,0.1768,2818.0,2817.5,10.1768]
[1749674780376,0.1768,2818.0,2817.5,20.2768]
[1749674781402,0.1768,2818.0,2817.6,8.30220943]
[1749674783102,0.1768,2818.0,2817.8,8.30220943]
[1749674783264,0.798,2818.2,2817.8,8.30220943]
[1749674783460,0.9748,2818.2,2817.8,8.30220943]
[1749674783665,0.1768,2818.2,2818.0,8.30220943]
[1749674785269,0.1768,2818.2,2817.8,8.30220943]
[1749674786712,0.1768,2818.2,2818.0,8.30220943]
[1749674788213,0.1768,2818.6,2818.1,0.9491]
[1749674788415,0.1768,2818.6,2818.4,8.30220943]
[1749674788716,0.1768,2819.0,2818.5,0.9851]
[1749674788922,0.1768,2819.0,2818.8,8.30220943]
[1749674789078,0.84918971,2819.6,2817.2,8.4]
[1749674789079,8.30220943,2819.4,2817.2,8.4]
[1749674789448,0.7896,2818.9,2818.4,10.1768]
[1749674789594,0.7896,2818.9,2818.4,3.8388]
[1749674789770,0.7896,2818.9,2818.4,5.30351]
[1749674790173,0.55,2818.8,2817.9,0.8331]
[1749674790378,0.8274,2818.4,2817.8,10.0]
[1749674790614,0.1768,2818.3,2817.8,0.1768]
[1749674791520,0.1768,2818.1,2817.6,0.1768]
[1749674791732,0.1768,2818.1,2817.6,10.1768]
[1749674791880,0.1768,2818.1,2817.6,0.1768]
[1749674792611,0.1768,2818.1,2817.6,10.1768]
[1749674792821,0.1768,2818.3,2817.8,0.1768]
[1749674792980,0.1768,2818.3,2817.7,7.8043595]
[1749674793206,0.1768,2818.3,2817.8,0.1768]
[1749674800946,1.3608,2818.2,2817.5,10.1]
[1749674801129,0.8108,2817.9,2817.5,10.2768]
[1749674801329,0.1768,2817.6,2817.5,10.1]
[1749674811323,1.4868,2817.6,2817.5,10.1]
[1749674815420,1.4868,2817.6,2817.0,11.96975528]
[1749674815670,0.1768,2817.4,2817.0,11.96975528]
[1749674817045,0.76,2817.6,2817.0,11.96975528]
[1749674817251,0.9368,2817.6,2817.1,0.1768]
[1749674818371,0.76,2817.6,2817.0,11.96975528]
[1749674818686,0.1768,2817.4,2817.0,3.661]
[1749674819968,0.1768,2817.4,2817.0,11.96975528]
[1749674821046,0.1768,2817.4,2816.9,10.1768]
[1749674821248,0.1768,2817.4,2816.8,4.28738388]
[1749674821249,0.55,2817.4,2816.8,4.28738388]
[1749674821455,0.1768,2817.2,2816.8,4.28738388]
[1749674821766,0.1768,2817.2,2816.8,12.59613916]
[1749674822867,0.1768,2817.2,2817.0,8.30875528]
[1749674823062,0.1768,2817.4,2817.0,8.30875528]
[1749674823273,0.1768,2817.4,2816.9,0.1768]
[1749674823475,0.8103,2817.3,2816.8,0.62738388]
[1749674823673,0.55,2817.2,2816.8,0.62738388]
[1749674823999,0.1768,2817.0,2816.8,0.62738388]
[1749674828301,0.1768,2817.0,2816.8,8.93613916]
[1749674828503,0.1768,2817.2,2816.8,9.10765528]
[1749674829411,0.1768,2817.2,2816.8,8.30875528]
[1749674829610,0.55,2817.3,2816.7,3.66]
[1749674829807,0.1768,2817.0,2816.7,3.66]
[1749674830009,0.1768,2817.0,2816.6,8.30875528]
[1749674830508,0.1768,2817.0,2816.5,13.8368]
[1749674830509,0.1768,2817.0,2816.5,0.1768]
[1749674830834,0.9749,2817.0,2816.5,0.1768]
[1749674832511,0.7981,2817.0,2816.4,9.12155528]
[1749674832694,0.1768,2816.9,2816.4,9.29835528]
[1749674832881,0.7981,2817.0,2816.3,10.0]
[1749674833080,0.7981,2817.0,2816.3,13.66]
[1749674833081,0.1768,2816.7,2816.3,13.66]
[1749674835615,0.1768,2816.7,2816.2,0.1768]
[1749674835815,0.1768,2816.7,2816.3,10.0]
[1749674836128,0.7981,2817.0,2816.3,11.45988]
[1749674838479,0.55,2816.9,2816.3,11.45988]
[1749674838653,0.8153,2816.8,2816.0,10.0]
[1749674838978,0.55,2816.7,2815.9,0.8217]
[1749674839141,0.55,2816.5,2815.8,1.57073396]
[1749674839337,0.55,2816.5,2815.8,2.99732796]
[1749674840225,0.8153,2816.6,2816.0,0.8108]
[1749674840536,10.0,2817.3,2816.0,0.8108]
[1749674840537,0.55,2816.7,2816.0,10.8108]
[1749674840750,0.55,2816.7,2816.0,0.8108]
[1749674840928,0.55,2817.2,2815.8,2.38153396]
[1749674841119,0.7946,2816.9,2815.8,6.04153396]
[1749674841330,0.7946,2816.9,2815.8,18.73674002]
[1749674842746,0.55,2816.8,2815.8,1.41853396]
[1749674843045,0.55,2816.4,2815.9,3.66]
[1749674843244,0.55,2816.4,2815.8,0.60773396]
[1749674845975,0.7856,2816.5,2815.9,12.69520606]
[1749674846136,0.7856,2816.7,2816.0,0.7773]
[1749674846328,0.1768,2816.6,2816.1,0.1768]
[1749674846524,0.1768,2816.6,2816.2,12.69520606]
[1749674847034,0.1768,2816.9,2816.4,0.1768]
[1749674847460,0.1768,2816.9,2816.5,12.69520606]
[1749674849180,0.7669,2817.3,2816.5,12.69520606]
[1749674849326,0.1768,2817.2,2816.7,0.1768]
[1749674850176,0.1768,2817.2,2816.9,0.7975]
[1749674850377,0.1768,2817.5,2817.0,0.1768]
[1749674853565,1.3214,2817.4,2816.6,0.8296]
[1749674853798,0.1768,2817.1,2816.5,0.1768]
[1749674853977,0.1768,2816.9,2816.5,0.1768]
[1749674857801,0.1768,2816.9,2816.0,0.7741]
[1749674857802,0.55,2816.9,2816.0,0.7741]
[1749674858020,0.75,2816.6,2816.2,12.87200606]
[1749674858225,0.75,2816.6,2816.3,10.0]
[1749674859788,0.75,2816.6,2816.2,10.0]
[1749674860004,0.9268,2816.6,2816.2,10.0]
[1749674860690,0.9268,2816.6,2815.8,14.07704002]
[1749674860691,0.55,2816.5,2815.8,14.07704002]
[1749674860906,0.9268,2816.4,2815.9,0.1768]
[1749674861096,0.75,2816.4,2815.9,10.0]
[1749674861268,0.1768,2816.2,2815.8,12.69520606]
[1749674861603,0.75,2816.1,2815.8,12.69520606]
[1749674863685,0.75,2816.1,2815.7,12.87200606]
[1749674864091,0.75,2816.1,2815.7,12.69520606]
[1749674864322,0.1768,2815.9,2815.5,10.0]
[1749674864496,0.1768,2815.9,2815.8,12.69520606]
[1749674865027,4.39827894,2817.0,2815.8,12.69520606]
[1749674865028,0.1768,2816.2,2815.8,12.69520606]
[1749674865194,0.1768,2816.2,2815.7,0.1768]
[1749674865395,0.75,2816.1,2816.0,12.69520606]
[1749674871213,0.75,2816.1,2816.0,8.31343403]
[1749674871738,0.75,2816.1,2816.0,16.62686806]
[1749674871939,0.1768,2816.2,2816.0,16.62686806]
[1749674872361,0.8052,2816.3,2816.0,16.62686806]
[1749674872567,0.1768,2816.3,2816.2,8.31343403]
[1749674876784,0.1768,2816.3,2816.0,8.31343403]
[1749674876927,0.1768,2816.3,2816.2,8.31343403]
[1749674878764,0.1768,2816.3,2815.8,0.9919]
[1749674879062,0.8011,2816.0,2815.8,8.31343403]
[1749674879366,0.8011,2816.5,2815.9,8.31343403]
[1749674879522,0.8011,2816.5,2816.4,8.31343403]
[1749674879723,0.98610614,2816.8,2816.4,8.31343403]
[1749674880042,0.98610614,2816.8,2815.9,11.97143403]
[1749674880043,0.98610614,2816.8,2816.7,8.31343403]
[1749674880865,1.53610614,2816.8,2816.5,8.31343403]
[1749674881041,0.8011,2816.6,2816.3,8.31343403]
[1749674881424,0.55,2816.5,2816.3,8.31343403]
[1749674881670,1.3512,2816.4,2816.3,8.31343403]
[1749674881872,1.54132,2816.4,2816.3,8.31343403]
[1749674882538,0.8012,2816.4,2816.3,8.31343403]
[1749674882754,1.3512,2816.7,2816.3,8.31343403]
[1749674882944,1.3512,2816.7,2816.5,8.31343403]
[1749674883341,0.1768,2816.5,2816.0,0.8221]
[1749674883547,0.1768,2816.5,2816.2,12.69497316]
[1749674884023,0.8012,2816.4,2816.2,12.69497316]
[1749674884228,0.8012,2816.4,2815.9,12.69497316]
[1749674885645,0.8012,2816.4,2815.8,10.1]
[1749674885646,0.8012,2816.4,2816.2,12.69497316]
[1749674886674,0.99740614,2816.8,2816.2,12.69497316]